fUST/lending_fUST_20250327
["ID","MTS","AMOUNT","RATE_DAILY","PERIOD"]
[356730059,1743053439209,-1261.699602,0.00020334,2]
[356730060,1743053439219,-1261.699602,0.00020334,2]
[356730061,1743053439229,-834.667584,0.0002034,2]
[356730062,1743053439239,-834.667584,0.0002034,2]
[356730063,1743053439249,-151.0,0.0002034,2]
[356730064,1743053439259,-151.0,0.0002034,2]
[356730065,1743053439268,-151.0,0.0002034,2]
[356730066,1743053439278,-151.0,0.00020341,2]
[356730067,1743053439288,-151.0,0.00020341,2]
[356730068,1743053439299,-151.0,0.00020341,2]
[356730069,1743053439309,-201.0,0.00020346,2]
[356730070,1743053439320,-8949.68774901,0.00020346,10]
[356730071,1743053439330,-160.0,0.00020346,2]
[356730072,1743053439341,-231.26145534,0.00020355,2]
[356730073,1743053439351,-320.93376196,0.000204,2]
[356730074,1743053439360,-151.0,0.00020407,2]
[356730075,1743053439370,-151.0,0.00020548,2]
[356730076,1743053439379,-1619.99402162,0.0002059,2]
[356730077,1743053439390,-834.667584,0.000209,2]
[356730078,1743053439399,-834.667584,0.000209,2]
[356730080,1743053439410,-1619.99402162,0.00021279,3]
[356730081,1743053439420,-179.4371998,0.00021353,4]
[356730082,1743053439430,-1619.99402162,0.00021969,3]
[356730083,1743053439439,-500.0,0.00022018,2]
[356730084,1743053439448,-151.0,0.0002221,7]
[356730085,1743053439457,-151.0,0.00022288,7]
[356730086,1743053439467,-500.0,0.00022412,2]
[356730087,1743053439476,-500.0,0.00022523,2]
[356730088,1743053439485,-1619.99402162,0.00022659,4]
[356730089,1743053439495,-1762.28,0.000229,25]
[356730090,1743053439505,-152.05624,0.000229,7]
[356730091,1743053439515,-151.0,0.000229,7]
[356730092,1743053439525,-500.0,0.00023117,2]
[356730093,1743053439535,-2819.4698223,0.00023279,2]
[356730095,1743053439544,-350.773417,0.00023279,7]
[356730096,1743053439553,-350.773417,0.00023279,7]
[356730097,1743053439563,-1261.699602,0.00023279,2]
[356730098,1743053439573,-1261.699602,0.00023279,2]
[356730099,1743053439583,-177.231319,0.00023288,2]
[356730100,1743053439593,-355.0,0.0002333,3]
[356730101,1743053439603,-355.0,0.0002333,3]
[356730102,1743053439613,-317.0,0.0002333,3]
[356730103,1743053439623,-355.0,0.0002333,3]
[356730104,1743053439633,-317.0,0.0002333,3]
[356730105,1743053439642,-355.0,0.0002333,3]
[356730106,1743053439652,-317.0,0.0002333,3]
[356730107,1743053439664,-355.0,0.0002333,3]
[356730108,1743053439673,-317.0,0.0002333,3]
[356730109,1743053439683,-406.11694226,0.0002333,3]
[356730110,1743053439693,-317.0,0.0002333,3]
[356730111,1743053439703,-341.22106544,0.0002333,3]
[356730112,1743053439714,-1619.99402162,0.00023348,4]
[356730113,1743053439724,-746.80003989,0.00023408,2]
[356730114,1743053439733,-500.0,0.00023547,2]
[356730115,1743053439744,-500.0,0.00023873,2]
[356730116,1743053439754,-151.0,0.00023873,7]
[356730117,1743053439763,-834.667584,0.00023873,7]
[356730118,1743053439775,-834.667584,0.00023873,7]
[356730119,1743053439845,-166.279552,0.00023873,7]
[356730120,1743053439855,-153.181314,0.000239,7]
[356730121,1743053439866,-170.722671,0.000239,7]
[356730122,1743053439876,-834.667584,0.000239,7]
[356730123,1743053439885,-834.667584,0.000239,7]
[356730124,1743053439896,-1425.34589678,0.000239,2]
[356730125,1743053439906,-500.59694202,0.00023973,2]
[356730126,1743053439917,-500.0,0.0002399,2]
[356730127,1743053439927,-151.0,0.00023999,2]
[356730128,1743053439938,-47720.84640046,0.00024,2]
[356730129,1743053439948,-153.181314,0.00024,7]
[356730130,1743053439958,-153.181314,0.00024,7]
[356730131,1743053439967,-834.667584,0.00024,7]
[356730132,1743053439977,-834.667584,0.00024,7]
[356730133,1743053439986,-834.667584,0.00024,7]
[356730134,1743053439996,-834.667584,0.00024,7]
[356730135,1743053440005,-178.38317671,0.00024,2]
[356730136,1743053440015,-500.0,0.00024,2]
[356730137,1743053440025,-500.0,0.00024,2]
[356730138,1743053440034,-500.0,0.00024,2]
[356730139,1743053440044,-500.0,0.00024,2]
[356730140,1743053440053,-200.49290307,0.00024,2]
[356730141,1743053440062,-150.26,0.00024,2]
[356730142,1743053440072,-198.02404249,0.00024,2]
[356730143,1743053440081,-292.39349513,0.00024,2]
[356730144,1743053440095,-150.26,0.00024,2]
[356730145,1743053440109,-150.26,0.00024,2]
[356730146,1743053440120,-150.26,0.00024,2]
[356730147,1743053440132,-150.26,0.00024,2]
[356730148,1743053440150,-150.26,0.00024,2]
[356730149,1743053440161,-165.9006966,0.00024,2]
[356730150,1743053440173,-500.0,0.00024,2]
[356730151,1743053440183,-500.0,0.00024,2]
[356730152,1743053440193,-150.26,0.00024,2]
[356730153,1743053440202,-500.0,0.00024,2]
[356730154,1743053440211,-500.0,0.00024,2]
[356730155,1743053440221,-418.47884548,0.00024,7]
[356730156,1743053440230,-418.47884548,0.00024,10]
[356730157,1743053440239,-151.0,0.00024,7]
[356730158,1743053440249,-151.0,0.00024,7]
[356730159,1743053440259,-160.0,0.00024,7]
[356730160,1743053440268,-209.646162,0.00024,7]
[356730161,1743053440278,-209.646162,0.00024,7]
[356730162,1743053440287,-500.0,0.00024,2]
[356730163,1743053440296,-150.26,0.00024,2]
[356730164,1743053440305,-150.26,0.00024,2]
[356730165,1743053440314,-150.26,0.00024,2]
[356730166,1743053440324,-168.24412292,0.00024,2]
[356730167,1743053440332,-500.0,0.00024,2]
[356730168,1743053440342,-500.0,0.00024,2]
[356730169,1743053440353,-500.0,0.00024,2]
[356730170,1743053440362,-200.0,0.00024,2]
[356730171,1743053440371,-500.0,0.00024,2]
[356730172,1743053440380,-500.0,0.00024,2]
[356730173,1743053440389,-150.26,0.00024,2]
[356730174,1743053440399,-500.0,0.00024,2]
[356730175,1743053440408,-12458.93820146,0.00024,7]
[356730176,1743053440417,-350.773417,0.00024,7]
[356730177,1743053440427,-350.773417,0.00024,7]
[356730178,1743053440436,-350.773417,0.00024,7]
[356730179,1743053440444,-350.773417,0.00024,7]
[356730180,1743053440454,-160.0,0.00024,7]
[356730181,1743053440463,-160.0,0.00024,10]
[356730182,1743053440472,-500.0,0.00024,2]
[356730183,1743053440481,-1261.699602,0.00024,2]
[356730184,1743053440489,-1261.699602,0.00024,2]
[356730185,1743053440499,-713.0,0.00024,2]
[356730186,1743053440507,-1261.699602,0.00024,2]
[356730187,1743053440516,-1261.699602,0.00024,2]
[356730188,1743053440525,-500.0,0.00024,2]
[356730189,1743053440534,-150.26,0.00024,2]
[356730190,1743053440543,-150.26,0.00024,2]
[356730191,1743053440553,-150.26,0.00024,2]
[356730192,1743053440562,-150.26,0.00024,2]
[356730193,1743053440572,-500.0,0.00024,2]
[356730194,1743053440581,-150.26,0.00024,2]
[356730195,1743053440591,-500.0,0.00024,2]
[356730196,1743053440600,-500.0,0.00024,2]
[356730197,1743053440609,-160.0,0.00024,7]
[356730198,1743053440618,-834.95724862,0.00024,7]
[356730199,1743053440628,-834.95724862,0.00024,10]
[356730200,1743053440638,-500.0,0.00024,2]
[356730201,1743053440647,-1619.99402162,0.00024038,5]
[356730202,1743053440658,-500.50453646,0.00024274,2]
[356730203,1743053440667,-500.0,0.00024274,2]
[356730204,1743053440676,-500.0,0.00024274,2]
[356730205,1743053440686,-651.57003262,0.00024274,2]
[356730206,1743053440695,-170.03338445,0.00024274,2]
[356730207,1743053440705,-150.26,0.00024274,2]
[356730208,1743053440715,-150.26,0.00024274,2]
[356730209,1743053440724,-169.688645,0.00024274,2]
[356730210,1743053440734,-150.26,0.00024274,2]
[356730211,1743053440744,-150.26,0.00024274,2]
[356730212,1743053440754,-969.90556674,0.00024274,2]
[356730213,1743053440764,-500.0,0.00024274,2]
[356730214,1743053440837,-150.26,0.00024274,2]
[356730215,1743053440847,-500.0,0.00024274,2]
[356730216,1743053440858,-500.0,0.00024274,2]
[356730217,1743053440868,-527.58009776,0.00024274,2]
[356730218,1743053440878,-150.26,0.00024274,2]
[356730219,1743053440888,-150.26,0.00024274,2]
[356730220,1743053440897,-150.26,0.00024274,2]
[356730221,1743053440906,-500.0,0.00024274,2]
[356730222,1743053440916,-500.0,0.00024274,2]
[356730223,1743053440926,-500.0,0.00024274,2]
[356730224,1743053440935,-200.0,0.00024274,2]
[356730225,1743053440945,-500.0,0.00024274,2]
[356730226,1743053440955,-500.0,0.00024274,2]
[356730227,1743053440964,-500.0,0.00024274,2]
[356730228,1743053440974,-500.0,0.00024274,2]
[356730229,1743053440984,-713.0,0.00024274,2]
[356730230,1743053440994,-500.0,0.00024274,2]
[356730231,1743053441005,-150.26,0.00024274,2]
[356730232,1743053441014,-500.0,0.00024274,2]
[356730233,1743053441024,-500.0,0.00024274,2]
[356730234,1743053441033,-500.0,0.00024274,2]
[356730235,1743053441043,-500.0,0.00024274,2]
[356730236,1743053441053,-151.0,0.000243,10]
[356730237,1743053441063,-151.0,0.000244,9]
[356730238,1743053441073,-158.988133,0.000244,7]
[356730239,1743053441083,-500.0,0.00024491,2]
[356730240,1743053441097,-500.0,0.00024548,2]
[356730241,1743053441106,-500.0,0.00024548,2]
[356730242,1743053441116,-150.26,0.00024548,2]
[356730243,1743053441125,-150.26,0.00024548,2]
[356730244,1743053441134,-150.26,0.00024548,2]
[356730245,1743053441144,-500.0,0.00024548,2]
[356730246,1743053441153,-199.52196229,0.00024548,2]
[356730247,1743053441164,-500.0,0.00024548,2]
[356730248,1743053441174,-500.0,0.00024548,2]
[356730249,1743053441184,-150.26,0.00024548,2]
[356730250,1743053441194,-232.64000495,0.00024548,2]
[356730251,1743053441203,-150.26,0.00024548,2]
[356730252,1743053441213,-500.0,0.00024548,2]
[356730253,1743053441223,-500.0,0.00024548,2]
[356730254,1743053441233,-500.0,0.00024548,2]
[356730255,1743053441243,-200.0,0.00024548,2]
[356730256,1743053441252,-500.0,0.00024548,2]
[356730257,1743053441263,-500.0,0.00024548,2]
[356730258,1743053441272,-500.0,0.00024548,2]
[356730259,1743053441282,-500.0,0.00024548,2]
[356730260,1743053441292,-713.0,0.00024548,2]
[356730261,1743053441301,-500.0,0.00024548,2]
[356730262,1743053441311,-150.26,0.00024548,2]
[356730263,1743053441320,-500.0,0.00024548,2]
[356730264,1743053441330,-500.0,0.00024548,2]
[356730265,1743053441339,-500.59617481,0.00024548,2]
[356730266,1743053441349,-506.15011958,0.00024548,2]
[356730267,1743053441358,-153.181314,0.00024548,7]
[356730268,1743053441368,-834.667584,0.00024548,7]
[356730269,1743053441377,-834.667584,0.00024548,7]
[356730270,1743053441387,-209.646162,0.00024548,7]
[356730271,1743053441396,-350.773417,0.00024548,7]
[356730273,1743053441405,-350.773417,0.00024548,7]
[356730275,1743053441415,-1261.699602,0.00024548,2]
[356730276,1743053441424,-1261.699602,0.00024548,2]
[356730277,1743053441434,-479.09000199,0.00024578,2]
[356730279,1743053441443,-312.317693,0.00024651,2]
[356730281,1743053441452,-8836.47904944,0.00024651,2]
[356730282,1743053441474,-20509.32535924,0.00024651,2]
[356730283,1743053441486,-6608.7482034,0.00024651,2]
[356730284,1743053441498,-21993.70472451,0.00024651,2]
[356730285,1743053441510,-3855.29718945,0.00024651,2]
[356730286,1743053441521,-3345.74423928,0.00024651,2]
[356730287,1743053441533,-1102.27126275,0.00024651,2]
[356730288,1743053441970,-3262.59799749,0.00024651,2]
[356730289,1743053441984,-479.93791128,0.00024651,2]
[356730290,1743053441995,-10723.48234833,0.00024651,2]
[356730291,1743053442005,-153.181314,0.00024651,7]
[356730292,1743053442015,-834.667584,0.00024651,7]
[356730293,1743053442024,-834.667582,0.00024651,7]
[356730294,1743053442034,-209.646162,0.00024651,7]
[356730295,1743053442043,-350.773417,0.00024651,7]
[356730296,1743053442052,-350.773417,0.00024651,7]
[356730297,1743053442062,-3971.43617852,0.00024651,2]
[356730298,1743053442071,-1261.699602,0.00024651,2]
[356730299,1743053442082,-1261.699602,0.00024651,2]
[356730300,1743053442093,-760.62759898,0.00024658,7]
[356730301,1743053442103,-500.0,0.00024658,2]
[356730302,1743053442112,-500.0,0.00024658,2]
[356730303,1743053442123,-1619.99402162,0.00024728,5]
[356730304,1743053442133,-30000.0,0.000248,3]
[356730305,1743053442143,-1000.0,0.000248,6]
[356730306,1743053442153,-151.0,0.000248,8]
[356730307,1743053442163,-151.0,0.000248,6]
[356730308,1743053442174,-151.0,0.000248,9]
[356730309,1743053442184,-153.181314,0.000248,7]
[356730310,1743053442194,-160.0,0.000248,3]
[356730311,1743053442203,-209.646172,0.000248,7]
[356730312,1743053442213,-12458.93820146,0.000248,3]
[356730313,1743053442223,-350.773417,0.000248,7]
[356730314,1743053442233,-350.773414,0.000248,7]
[356730315,1743053442242,-160.0,0.000248,3]
[356730316,1743053442251,-1261.699602,0.000248,2]
[356730317,1743053442261,-1261.69959562,0.000248,2]
[356730318,1743053442270,-160.0,0.000248,3]
[356730319,1743053442280,-834.95724862,0.000248,3]
[356730320,1743053442290,-500.0,0.00024822,2]
[356730321,1743053442299,-500.0,0.00024822,2]
[356730322,1743053442308,-500.0,0.00024822,2]
[356730323,1743053442318,-500.0,0.00024822,2]
[356730324,1743053442327,-500.0,0.00024822,2]
[356730325,1743053442337,-150.26,0.00024822,2]
[356730326,1743053442346,-150.26,0.00024822,2]
[356730327,1743053442356,-500.0,0.00024822,2]
[356730329,1743053442365,-500.0,0.00024822,2]
[356730330,1743053442374,-500.0,0.00024822,2]
[356730331,1743053442384,-200.0,0.00024822,2]
[356730332,1743053442393,-500.0,0.00024822,2]
[356730333,1743053442403,-500.0,0.00024822,2]
[356730334,1743053442414,-500.0,0.00024822,2]
[356730336,1743053442423,-500.0,0.00024822,2]
[356730337,1743053442433,-713.0,0.00024822,2]
[356730338,1743053442443,-500.0,0.00024822,2]
[356730340,1743053442452,-150.26,0.00024822,2]
[356730342,1743053442462,-500.0,0.00024822,2]
[356730345,1743053442471,-500.0,0.00024822,2]
[356730347,1743053442480,-1000.0,0.00024852,2]
[356730348,1743053442489,-1000.0,0.00024852,2]
[356730349,1743053442499,-1000.0,0.00024852,2]
[356730350,1743053442508,-1000.0,0.00024852,2]
[356730351,1743053442517,-500.0,0.00024873,2]
[356730352,1743053442527,-500.0,0.00024873,2]
[356730353,1743053442536,-500.0,0.00024873,2]
[356730354,1743053442545,-500.0,0.00024873,2]
[356730355,1743053442555,-500.0,0.00024873,2]
[356730356,1743053442564,-500.0,0.00024873,2]
[356730357,1743053442574,-500.0,0.00024873,2]
[356730359,1743053442584,-500.0,0.00024873,2]
[356730361,1743053442593,-500.0,0.00024873,2]
[356730363,1743053442602,-500.0,0.00024873,2]
[356730364,1743053442611,-500.0,0.00024873,2]
[356730365,1743053442620,-479.05084388,0.00024873,2]
[356730366,1743053442630,-500.0,0.00024873,2]
[356730367,1743053442639,-500.0,0.00024873,2]
[356730368,1743053442649,-500.0,0.00024873,2]
[356730369,1743053442660,-208.02083398,0.00024873,2]
[356730370,1743053442669,-500.0,0.00024873,2]
[356730371,1743053442679,-500.0,0.00024873,2]
[356730372,1743053442690,-500.0,0.00024873,2]
[356730373,1743053442701,-500.0,0.00024873,2]
[356730374,1743053442711,-500.0,0.00024873,2]
[356730375,1743053442721,-500.0,0.00024873,2]
[356730376,1743053442731,-501.40899556,0.00024873,2]
[356730377,1743053442740,-500.0,0.00024873,2]
[356730378,1743053442750,-500.0,0.00024873,2]
[356730379,1743053442760,-500.0,0.00024873,2]
[356730380,1743053442857,-500.0,0.00024873,2]
[356730381,1743053442867,-150.38483231,0.00024873,2]
[356730382,1743053442876,-500.0,0.00024873,2]
[356730383,1743053442886,-153.181314,0.00024873,7]
[356730384,1743053442896,-50000.0,0.0002489,2]
[356730385,1743053442905,-153.181314,0.0002489,7]
[356730386,1743053442916,-153.181314,0.0002489,7]
[356730387,1743053442925,-174.00873452,0.0002489,2]
[356730388,1743053442934,-153.181314,0.000249,7]
[356730389,1743053442944,-153.181314,0.000249,7]
[356730390,1743053442953,-2599.23659341,0.000249,2]
[356730391,1743053442966,-54473.79515344,0.000249,2]
[356730395,1743053446638,-103055.72147069,0.000249,2]
[356730396,1743053506530,500.0,0.00023,120]
[356730397,1743053507287,500.0,0.00023,120]
[356730398,1743053508048,500.0,0.00023,120]
[356730399,1743053508807,500.0,0.00023,120]
[356730400,1743053509560,383.0,0.00023,120]
[356730401,1743053692637,541.0,0.00014,30]
[356730402,1743053873097,2000.0,0.00024876,120]
[356730403,1743053873590,2000.0,0.00024876,120]
[356730404,1743053873860,770.35723914,0.00024876,120]
[356730408,1743054425176,-833.79835475,0.00018845,2]
[356730409,1743054425203,-281.3472577,0.00018945,2]
[356730410,1743054425232,-10.13243678,0.00019236,2]
[356730411,1743054451128,-982.80358576,0.00019236,2]
[356730412,1743054451150,-300.0,0.00019334,2]
[356730413,1743054451172,-500.0,0.00019335,2]
[356730414,1743054451193,-271.82856623,0.00019335,2]
[356730415,1743054451215,-208.77649035,0.00019335,2]
[356730416,1743054451237,-354.80195638,0.00019335,2]
[356730417,1743054454083,-144.55267824,0.00019335,2]
[356730418,1743054454109,-500.0,0.00019335,2]
[356730419,1743054454136,-500.0,0.00019335,2]
[356730420,1743054454161,-500.0,0.00019335,2]
[356730421,1743054454185,-500.0,0.00019335,2]
[356730422,1743054454212,-500.0,0.00019335,2]
[356730423,1743054454238,-500.0,0.00019335,2]
[356730424,1743054454262,-500.0,0.00019335,2]
[356730425,1743054454288,-437.57515482,0.00019335,2]
[356730426,1743054454315,-500.0,0.00019335,2]
[356730427,1743054454341,-500.0,0.00019335,2]
[356730428,1743054454367,-500.0,0.00019335,2]
[356730429,1743054454391,-391.08564155,0.00019335,2]
[356730430,1743054462411,1309.06,0.00012,10]
[356730431,1743054523602,300.0,0.00025,120]
[356730432,1743054542009,300.0,0.00025,120]
[356730434,1743054570262,-183.764592,0.00010959,2]
[356730464,1743054631990,-4.576971,0.00010959,2]
[356730465,1743054632000,-188.341563,0.00015068,2]
[356730466,1743054632010,-444.021466,0.00018311,2]
[356730467,1743054632103,-492.98234495,0.00018311,2]
[356730492,1743054637871,-7766.26668424,0.00018311,2]
[356730493,1743054637883,-3523.90022591,0.00018311,2]
[356730494,1743054637892,-188.341563,0.00019178,2]
[356730495,1743054637902,-868.81901974,0.00019234,2]
[356730496,1743054637912,-500.0,0.00019333,2]
[356730497,1743054637921,-190.27999636,0.00019333,2]
[356730498,1743054637931,-199.54824423,0.00019333,2]
[356730499,1743054637941,-500.0,0.00019333,2]
[356730500,1743054637951,-215.28612831,0.00019333,2]
[356730501,1743054637961,-500.0,0.00019333,2]
[356730502,1743054637971,-409.45780408,0.00019333,2]
[356730503,1743054637983,-90.54219592,0.00019333,2]
[356730505,1743054637992,-500.0,0.00019333,2]
[356730507,1743054638002,-500.0,0.00019333,2]
[356730509,1743054638012,-500.0,0.00019333,2]
[356730511,1743054638021,-500.0,0.00019333,2]
[356730512,1743054638031,-500.0,0.00019333,2]
[356730513,1743054638040,-500.0,0.00019333,2]
[356730514,1743054638050,-500.0,0.00019333,2]
[356730515,1743054638059,-500.0,0.00019333,2]
[356730516,1743054638068,-500.0,0.00019333,2]
[356730517,1743054638078,-500.0,0.00019333,2]
[356730518,1743054638087,-500.0,0.00019333,2]
[356730519,1743054638096,-500.0,0.00019333,2]
[356730520,1743054638106,-500.0,0.00019333,2]
[356730521,1743054638115,-474.79484915,0.00019333,2]
[356730522,1743054638125,-500.0,0.00019333,2]
[356730523,1743054638134,-283.36845297,0.00019333,2]
[356730543,1743054640186,-216.63154703,0.00019333,2]
[356730544,1743054640196,-128.61761509,0.00019333,2]
[356730545,1743054640243,-371.38238491,0.00019333,2]
[356730546,1743054640253,-500.0,0.00019333,2]
[356730547,1743054640263,-500.0,0.00019333,2]
[356730548,1743054640272,-500.0,0.00019333,2]
[356730549,1743054640281,-500.0,0.00019333,2]
[356730550,1743054640290,-500.0,0.00019333,2]
[356730551,1743054640300,-500.0,0.00019333,2]
[356730552,1743054640310,-500.0,0.00019333,2]
[356730553,1743054640319,-500.0,0.00019333,2]
[356730554,1743054640329,-500.0,0.00019333,2]
[356730555,1743054640339,-500.0,0.00019333,2]
[356730556,1743054640348,-500.0,0.00019333,2]
[356730557,1743054640357,-500.0,0.00019333,2]
[356730558,1743054640367,-500.0,0.00019333,2]
[356730559,1743054640377,-500.0,0.00019333,2]
[356730560,1743054640386,-500.0,0.00019333,2]
[356730561,1743054640396,-500.0,0.00019333,2]
[356730562,1743054640406,-500.0,0.00019333,2]
[356730563,1743054640415,-500.0,0.00019333,2]
[356730564,1743054640425,-500.0,0.00019333,2]
[356730565,1743054640434,-500.0,0.00019333,2]
[356730566,1743054640444,-500.0,0.00019333,2]
[356730567,1743054640453,-500.0,0.00019333,2]
[356730568,1743054640462,-500.0,0.00019342,2]
[356730569,1743054640472,-500.0,0.000194,2]
[356730570,1743054640482,-500.0,0.000194,2]
[356730571,1743054640492,-548.14648127,0.000194,2]
[356730572,1743054640505,-500.0,0.000194,2]
[356730573,1743054640514,-500.0,0.00019408,2]
[356730574,1743054640524,-500.0,0.00019413,2]
[356730575,1743054640533,-500.0,0.00019413,2]
[356730576,1743054640543,-500.0,0.00019414,2]
[356730577,1743054640552,-500.0,0.00019414,2]
[356730578,1743054640561,-500.0,0.00019414,2]
[356730579,1743054640573,-500.0,0.00019414,2]
[356730580,1743054640584,-309.48122784,0.00019438,2]
[356730581,1743054640594,-160.0,0.00020268,2]
[356730582,1743054640603,-160.0,0.00020268,2]
[356730583,1743054640612,-834.95724862,0.00020268,2]
[356730584,1743054640622,-1408.4630267,0.00020287,2]
[356730585,1743054640631,-418.47884548,0.00020297,2]
[356730586,1743054640641,-160.0,0.00020297,2]
[356730587,1743054640650,-12458.93820146,0.00020297,2]
[356730588,1743054640659,-1267.12874573,0.000209,3]
[356730589,1743054640669,-1267.12874561,0.00021555,3]
[356730590,1743054640678,-500.0,0.00022109,2]
[356730591,1743054640688,-868.81901969,0.00022186,2]
[356730592,1743054640697,-1267.12874561,0.0002221,3]
[356730593,1743054640707,-1267.12874561,0.00022866,4]
[356730594,1743054640715,-500.0,0.00023064,2]
[356730595,1743054640725,-500.0,0.00023211,2]
[356730596,1743054640735,-188.341563,0.00023288,2]
[356730597,1743054640744,-500.0,0.00023384,2]
[356730598,1743054640753,-1267.12874561,0.00023521,4]
[356730599,1743054640763,-287.04,0.00023547,4]
[356730600,1743054640772,-1601.82003838,0.0002399,2]
[356730618,1743055430722,505.0,0.00012,10]
[356730626,1743055630135,-656.71914004,0.00018469,2]
[356730627,1743055630980,-301.28494961,0.00018469,2]
[356730628,1743055644131,-58.07123635,0.00018469,2]
[356730629,1743055644153,-300.0,0.00018569,2]
[356730630,1743055644174,-4346.7839882,0.0001857,2]
[356730631,1743055644195,-500.0,0.0001857,2]
[356730632,1743055644216,-899.58506455,0.00019225,2]
[356730633,1743055644237,-271.30442478,0.00019225,2]
[356730634,1743055644259,-4947.40621585,0.00019231,2]
[356730641,1743055750158,-187.94855611,0.00010959,2]
[356730666,1743055832188,-21.56061889,0.00010959,2]
[356730668,1743055832199,-19163.8876936,0.00018299,2]
[356730670,1743055832208,-187.7660309,0.00018323,2]
[356730672,1743055832218,-787.13693149,0.00019225,2]
[356730674,1743055832227,-52.59378415,0.00019231,2]
[356730675,1743055832237,-920.56220065,0.00019314,2]
[356730677,1743055832247,-608.67360181,0.00019323,2]
[356730679,1743055832257,-1524.1637433,0.00019323,2]
[356730681,1743055832267,-13540.11057632,0.00019324,2]
[356730683,1743055832276,-500.0,0.00019324,2]
[356730685,1743055832285,-295.57046155,0.00019324,2]
[356730687,1743055832295,-500.0,0.00019324,2]
[356730689,1743055832305,-500.0,0.00019324,2]
[356730691,1743055832314,-500.0,0.00019324,2]
[356730693,1743055832323,-532.89705055,0.00019324,2]
[356730695,1743055832332,-500.0,0.00019324,2]
[356730697,1743055832341,-500.0,0.00019324,2]
[356730699,1743055832350,-500.0,0.00019324,2]
[356730701,1743055832360,-500.0,0.00019324,2]
[356730703,1743055832369,-500.0,0.00019324,2]
[356730705,1743055832378,-500.0,0.00019324,2]
[356730707,1743055832388,-500.0,0.00019324,2]
[356730710,1743055832397,-500.0,0.00019324,2]
[356730713,1743055832407,-500.0,0.00019324,2]
[356730716,1743055832416,-500.0,0.00019324,2]
[356730719,1743055832425,-500.0,0.00019324,2]
[356730722,1743055832434,-500.0,0.00019324,2]
[356730724,1743055832443,-500.0,0.00019324,2]
[356730726,1743055832452,-500.0,0.00019324,2]
[356730728,1743055832462,-500.0,0.00019324,2]
[356730731,1743055832471,-500.0,0.00019324,2]
[356730734,1743055832480,-500.0,0.00019324,2]
[356730737,1743055832489,-500.0,0.00019324,2]
[356730740,1743055832499,-500.0,0.00019324,2]
[356730743,1743055832508,-500.0,0.00019324,2]
[356730746,1743055832517,-500.0,0.00019324,2]
[356730749,1743055832526,-500.0,0.00019324,2]
[356730752,1743055832535,-500.0,0.00019324,2]
[356730755,1743055832544,-500.0,0.00019324,2]
[356730758,1743055832553,-500.0,0.00019324,2]
[356730761,1743055832563,-998.98418509,0.00019324,2]
[356730764,1743055832573,-998.98418509,0.00019324,2]
[356730767,1743055832582,-998.98418509,0.00019324,2]
[356730770,1743055832591,-998.98418509,0.00019324,2]
[356730773,1743055832600,-998.98418509,0.00019324,2]
[356730776,1743055832610,-998.98418509,0.00019324,2]